fUSD/lending_fUSD_20250206
["ID","MTS","AMOUNT","RATE_DAILY","PERIOD"]
[351926742,1738846275805,-500.0,0.00019589,3]
[351926743,1738846275815,-500.0,0.00019589,3]
[351926744,1738846275826,-505.84720411,0.00019589,3]
[351926745,1738846275836,-627.66,0.00019589,3]
[351926746,1738846275846,-500.0,0.00019589,3]
[351926747,1738846275856,-1011.73,0.00019589,3]
[351926748,1738846275866,-500.0,0.00019589,3]
[351926749,1738846275876,-500.0,0.00019589,3]
[351926750,1738846275886,-500.0,0.00019589,3]
[351926751,1738846275896,-500.0,0.00019589,3]
[351926752,1738846275907,-500.0,0.00019589,3]
[351926753,1738846275917,-505.59214003,0.00019589,3]
[351926754,1738846275927,-500.0,0.00019589,3]
[351926755,1738846275937,-506.64384469,0.00019589,3]
[351926756,1738846275947,-631.95,0.00019589,3]
[351926757,1738846275958,-678.7,0.00019589,3]
[351926758,1738846275968,-500.0,0.00019589,3]
[351926759,1738846275978,-500.0,0.00019589,3]
[351926760,1738846275988,-578.77,0.00019589,3]
[351926761,1738846275999,-534.72861336,0.00019589,3]
[351926762,1738846276009,-500.0,0.00019589,3]
[351926763,1738846276019,-768.02,0.00019589,3]
[351926764,1738846276030,-500.0,0.00019589,3]
[351926765,1738846276040,-500.0,0.00019589,3]
[351926766,1738846276050,-500.0,0.00019589,3]
[351926767,1738846276060,-500.0,0.00019589,3]
[351926768,1738846276070,-654.58,0.00019589,3]
[351926769,1738846276080,-500.0,0.00019589,3]
[351926770,1738846276090,-500.0,0.00019589,3]
[351926771,1738846276100,-500.0,0.00019589,3]
[351926772,1738846276110,-1083.17,0.00019589,3]
[351926773,1738846276120,-500.0,0.00019589,3]
[351926774,1738846276131,-500.0,0.00019589,3]
[351926775,1738846276141,-500.0,0.00019589,3]
[351926776,1738846276151,-549.5,0.00019589,3]
[351926777,1738846276162,-500.0,0.00019589,3]
[351926778,1738846276172,-601.92,0.00019589,3]
[351926779,1738846276182,-500.0,0.00019589,3]
[351926780,1738846276194,-501.98235384,0.00019589,3]
[351926781,1738846276204,-500.0,0.00019589,3]
[351926782,1738846276215,-609.35,0.00019589,3]
[351926783,1738846276225,-500.0,0.00019589,3]
[351926784,1738846276235,-500.0,0.00019589,3]
[351926785,1738846276245,-863.26,0.00019589,3]
[351926786,1738846276255,-500.0,0.00019589,3]
[351926787,1738846276264,-500.0,0.00019589,3]
[351926788,1738846276275,-783.73,0.00019589,3]
[351926789,1738846276285,-1140.32,0.00019589,3]
[351926790,1738846276295,-500.0,0.00019589,3]
[351926791,1738846276305,-827.02,0.00019589,3]
[351926792,1738846276315,-646.48,0.00019589,3]
[351926793,1738846276325,-500.0,0.00019589,3]
[351926794,1738846276335,-500.0,0.00019589,3]
[351926795,1738846276346,-500.0,0.00019589,3]
[351926796,1738846276356,-965.91,0.00019589,3]
[351926797,1738846276367,-500.0,0.00019589,3]
[351926798,1738846276377,-500.0,0.00019589,3]
[351926799,1738846276387,-500.0,0.00019589,3]
[351926800,1738846276398,-500.0,0.00019589,3]
[351926801,1738846276408,-500.0,0.00019589,3]
[351926802,1738846276418,-501.81,0.00019589,3]
[351926803,1738846276429,-500.0,0.00019589,3]
[351926804,1738846276440,-500.0,0.00019589,3]
[351926805,1738846276451,-500.0,0.00019589,3]
[351926806,1738846276461,-500.0,0.00019589,3]
[351926807,1738846276471,-500.0,0.00019589,3]
[351926808,1738846276481,-500.0,0.00019589,3]
[351926809,1738846276492,-503.38245669,0.00019589,3]
[351926810,1738846276503,-745.37,0.00019589,3]
[351926811,1738846276513,-500.0,0.00019589,3]
[351926812,1738846276524,-352.9234566,0.00019589,3]
[351926813,1738846276534,-500.0,0.00019589,3]
[351926814,1738846276545,-700.12,0.00019589,3]
[351926815,1738846276555,-853.56,0.00019589,3]
[351926816,1738846276567,-792.05,0.00019589,3]
[351926817,1738846276580,-500.0,0.00019589,3]
[351926818,1738846276591,-500.0,0.00019589,3]
[351926819,1738846276601,-689.48,0.00019589,3]
[351926820,1738846276611,-620.94352836,0.00019589,3]
[351926821,1738846276623,-741.16,0.00019589,3]
[351926822,1738846276633,-500.0,0.00019589,3]
[351926823,1738846276643,-723.15,0.00019589,3]
[351926824,1738846276655,-500.0,0.00019589,3]
[351926825,1738846276666,-500.0,0.00019589,3]
[351926826,1738846276676,-500.0,0.00019589,3]
[351926827,1738846276687,-703.25,0.00019589,3]
[351926828,1738846276699,-956.01,0.00019589,3]
[351926829,1738846276709,-500.0,0.00019589,3]
[351926830,1738846276722,-500.0,0.00019589,3]
[351926831,1738846276736,-500.0,0.00019589,3]
[351926832,1738846276750,-603.15176436,0.00019589,3]
[351926833,1738846276763,-500.0,0.00019589,3]
[351926834,1738846276778,-500.0,0.00019589,3]
[351926835,1738846276794,-516.04,0.00019589,3]
[351926836,1738846276809,-502.93494386,0.00019589,3]
[351926837,1738846276823,-569.62,0.00019589,3]
[351926838,1738846276836,-500.0,0.00019589,3]
[351926839,1738846276850,-899.92,0.00019589,3]
[351926840,1738846276867,-500.0,0.00019589,3]
[351926841,1738846276881,-500.0,0.00019589,3]
[351926842,1738846276896,-1046.69,0.00019589,3]
[351926843,1738846276912,-504.78926002,0.00019589,3]
[351926844,1738846276926,-502.99944854,0.00019589,3]
[351926845,1738846276941,-581.86,0.00019589,3]
[351926846,1738846276955,-500.0,0.00019589,3]
[351926847,1738846276971,-947.64,0.00019589,3]
[351926848,1738846276984,-598.20987068,0.00019589,3]
[351926849,1738846276996,-500.0,0.00019589,3]
[351926850,1738846277009,-500.0,0.00019589,3]
[351926851,1738846277025,-500.0,0.00019589,3]
[351926852,1738846277037,-816.65,0.00019589,3]
[351926853,1738846277050,-970.12,0.00019589,3]
[351926854,1738846277066,-298.73515991,0.00019589,3]
[351926855,1738846277077,-500.0,0.00019589,3]
[351926856,1738846277090,-500.0,0.00019589,3]
[351926857,1738846277103,-500.0,0.00019589,3]
[351926858,1738846277116,-500.0,0.00019589,3]
[351926859,1738846277128,-1007.43,0.00019589,3]
[351926860,1738846277140,-500.0,0.00019589,3]
[351926861,1738846277152,-509.89422423,0.00019589,3]
[351926862,1738846277164,-500.0,0.00019589,3]
[351926863,1738846277177,-500.0,0.00019589,3]
[351926864,1738846277190,-570.54,0.00019589,3]
[351926865,1738846277205,-500.0,0.00019589,3]
[351926866,1738846277219,-885.21,0.00019589,3]
[351926867,1738846277231,-709.25,0.00019589,3]
[351926868,1738846277245,-500.0,0.00019589,3]
[351926869,1738846277258,-500.0,0.00019589,3]
[351926870,1738846277271,-500.0,0.00019589,3]
[351926871,1738846277283,-500.0,0.00019589,3]
[351926872,1738846277296,-500.0,0.00019589,3]
[351926873,1738846277309,-500.0,0.00019589,3]
[351926874,1738846277321,-580.42,0.00019589,3]
[351926875,1738846277334,-717.82,0.00019589,3]
[351926876,1738846277347,-500.0,0.00019589,3]
[351926877,1738846277360,-500.0,0.00019589,3]
[351926878,1738846277374,-500.0,0.00019589,3]
[351926879,1738846277387,-1096.32,0.00019589,3]
[351926880,1738846277400,-638.14,0.00019589,3]
[351926881,1738846277414,-500.0,0.00019589,3]
[351926882,1738846277426,-503.19489683,0.00019589,3]
[351926883,1738846277439,-500.0,0.00019589,3]
[351926884,1738846277452,-987.02,0.00019589,3]
[351926885,1738846277464,-515.63134067,0.00019589,3]
[351926886,1738846277477,-500.0,0.00019589,3]
[351926887,1738846277490,-500.0,0.00019589,3]
[351926888,1738846277503,-716.43,0.00019589,3]
[351926889,1738846277515,-545.84,0.00019589,3]
[351926890,1738846277527,-500.0,0.00019589,3]
[351926891,1738846277539,-500.0,0.00019589,3]
[351926892,1738846277551,-500.0,0.00019589,3]
[351926893,1738846277564,-500.0,0.00019589,3]
[351926894,1738846277579,-766.62,0.00019589,3]
[351926895,1738846277592,-500.0,0.00019589,3]
[351926896,1738846277605,-586.84,0.00019589,3]
[351926897,1738846277619,-785.91,0.00019589,3]
[351926898,1738846277633,-500.0,0.00019589,3]
[351926899,1738846277646,-536.03415336,0.00019589,3]
[351926900,1738846277658,-500.0,0.00019589,3]
[351926901,1738846277670,-1138.94,0.00019589,3]
[351926902,1738846277683,-737.02,0.00019589,3]
[351926903,1738846277695,-500.0,0.00019589,3]
[351926904,1738846277707,-500.0,0.00019589,3]
[351926905,1738846277720,-1288.77,0.00019589,3]
[351926906,1738846277732,-500.0,0.00019589,3]
[351926907,1738846277746,-757.62,0.00019589,3]
[351926908,1738846277759,-500.0,0.00019589,3]
[351926909,1738846277772,-1313.88,0.00019589,3]
[351926910,1738846277785,-232.06146499,0.00019589,3]
[351926911,1738846277797,-500.0,0.00019589,7]
[351926912,1738846277810,-500.0,0.00019589,3]
[351926913,1738846277823,-500.0,0.00019589,3]
[351926914,1738846277836,-500.0,0.00019589,3]
[351926915,1738846277851,-500.0,0.00019589,3]
[351926916,1738846277863,-500.0,0.00019589,3]
[351926917,1738846277876,-500.0,0.00019589,3]
[351926918,1738846277888,-953.77,0.00019589,3]
[351926919,1738846277900,-930.79,0.00019589,3]
[351926920,1738846277916,-500.0,0.00019589,3]
[351926921,1738846277929,-500.0,0.00019589,3]
[351926922,1738846277941,-500.0,0.00019589,3]
[351926923,1738846277954,-1252.47,0.00019589,3]
[351926924,1738846277966,-500.0,0.00019589,3]
[351926925,1738846277978,-500.0,0.00019589,3]
[351926926,1738846277990,-710.3,0.00019589,3]
[351926927,1738846278003,-500.0,0.00019589,3]
[351926928,1738846278015,-502.06597499,0.00019589,3]
[351926929,1738846278028,-500.0,0.00019589,3]
[351926930,1738846278042,-500.0,0.00019589,3]
[351926931,1738846278055,-500.0,0.00019589,2]
[351926932,1738846278069,-1072.89,0.00019589,3]
[351926933,1738846278081,-500.0,0.00019589,3]
[351926934,1738846278094,-1642.77,0.00019589,3]
[351926935,1738846278106,-504.18766811,0.00019589,3]
[351926936,1738846278119,-500.0,0.00019589,3]
[351926937,1738846278132,-828.24,0.00019589,3]
[351926938,1738846278144,-500.0,0.00019589,3]
[351926939,1738846278157,-500.0,0.00019589,3]
[351926940,1738846278169,-500.0,0.00019589,3]
[351926941,1738846278182,-500.0,0.00019589,3]
[351926942,1738846278194,-500.0,0.00019589,3]
[351926943,1738846278207,-1496.69,0.00019589,3]
[351926944,1738846278220,-641.51,0.00019589,3]
[351926945,1738846278232,-500.0,0.00019589,3]
[351926946,1738846278245,-500.0,0.00019589,3]
[351926947,1738846278257,-865.92,0.00019589,3]
[351926948,1738846278269,-500.0,0.00019589,3]
[351926949,1738846278281,-934.46,0.00019589,3]
[351926950,1738846278293,-500.0,0.00019589,3]
[351926951,1738846278306,-500.0,0.00019589,3]
[351926952,1738846278318,-500.0,0.00019589,3]
[351926953,1738846278331,-500.0,0.00019589,3]
[351926954,1738846278343,-1164.35,0.00019589,3]
[351926955,1738846278356,-1071.44,0.00019589,3]
[351926956,1738846278368,-500.0,0.00019589,3]
[351926957,1738846278381,-500.0,0.00019589,3]
[351926958,1738846278393,-500.0,0.00019589,3]
[351926959,1738846278405,-860.79,0.00019589,3]
[351926960,1738846278417,-500.0,0.00019589,3]
[351926961,1738846278431,-524.69,0.00019589,3]
[351926962,1738846278444,-2259.32,0.00019589,3]
[351926963,1738846278457,-1084.21,0.00019589,3]
[351926964,1738846278469,-500.0,0.00019589,3]
[351926965,1738846278482,-500.0,0.00019589,3]
[351926966,1738846278495,-500.0,0.00019589,3]
[351926967,1738846278509,-500.0,0.00019589,3]
[351926968,1738846278521,-500.0,0.00019589,3]
[351926969,1738846278534,-814.33,0.00019589,3]
[351926970,1738846278547,-500.0,0.00019589,3]
[351926971,1738846278783,-500.0,0.00019589,3]
[351926972,1738846278800,-698.27,0.00019589,3]
[351926973,1738846278810,-500.0,0.00019589,3]
[351926974,1738846278820,-1051.97,0.00019589,3]
[351926975,1738846278829,-765.65,0.00019589,3]
[351926976,1738846278839,-500.0,0.00019589,3]
[351926977,1738846278849,-500.0,0.00019589,3]
[351926978,1738846278859,-500.0,0.00019589,3]
[351926979,1738846278869,-500.0,0.00019589,3]
[351926980,1738846278879,-500.0,0.00019589,3]
[351926981,1738846278889,-850.52,0.00019589,3]
[351926982,1738846278899,-500.0,0.00019589,3]
[351926983,1738846278909,-1232.26,0.00019589,3]
[351926984,1738846278919,-501.9530557,0.00019589,3]
[351926985,1738846278929,-500.0,0.00019589,3]
[351926986,1738846278939,-780.01,0.00019589,3]
[351926987,1738846278949,-500.0,0.00019589,3]
[351926988,1738846278959,-500.0,0.00019589,3]
[351926989,1738846278969,-1926.69,0.00019589,3]
[351926990,1738846278979,-2139.79,0.00019589,3]
[351926991,1738846278989,-500.0,0.00019589,3]
[351926992,1738846278999,-500.0,0.00019589,3]
[351926993,1738846279008,-500.0,0.00019589,3]
[351926994,1738846279019,-500.0,0.00019589,3]
[351926995,1738846279029,-1195.07,0.00019589,3]
[351926996,1738846279039,-671.0,0.00019589,3]
[351926997,1738846279049,-500.0,0.00019589,3]
[351926998,1738846279059,-539.06122692,0.00019589,3]
[351926999,1738846279069,-768.36,0.00019589,3]
[351927000,1738846279079,-500.0,0.00019589,3]
[351927001,1738846279089,-500.0,0.00019589,3]
[351927002,1738846279098,-955.69,0.00019589,3]
[351927003,1738846279108,-500.0,0.00019589,3]
[351927004,1738846279119,-1786.28,0.00019589,3]
[351927005,1738846279129,-500.0,0.00019589,3]
[351927006,1738846279139,-500.0,0.00019589,3]
[351927007,1738846279149,-1358.09,0.00019589,3]
[351927008,1738846279160,-960.54,0.00019589,3]
[351927009,1738846279170,-500.0,0.00019589,3]
[351927010,1738846279180,-1261.92,0.00019589,3]
[351927011,1738846279192,-837.85,0.00019589,3]
[351927012,1738846279205,-1430.17,0.00019589,3]
[351927013,1738846279215,-500.0,0.00019589,3]
[351927014,1738846279225,-500.0,0.00019589,3]
[351927015,1738846279235,-500.0,0.00019589,3]
[351927016,1738846279244,-1032.7,0.00019589,3]
[351927017,1738846279253,-500.0,0.00019589,3]
[351927018,1738846279263,-500.0,0.00019589,3]
[351927019,1738846279272,-500.0,0.00019589,3]
[351927020,1738846279281,-755.51,0.00019589,3]
[351927021,1738846279291,-398.12553619,0.00019589,3]
[351927022,1738846279300,-599.97,0.00019589,3]
[351927023,1738846279310,-1498.88,0.00019589,3]
[351927024,1738846279320,-1448.74,0.00019589,3]
[351927025,1738846279330,-500.0,0.00019589,3]
[351927026,1738846279339,-500.0,0.00019589,3]
[351927027,1738846279349,-4363.74,0.00019589,3]
[351927028,1738846279358,-500.0,0.00019589,3]
[351927029,1738846279367,-1156.18,0.00019589,3]
[351927030,1738846279377,-313.37449628,0.00019589,3]
[351927031,1738846279386,-1082.61,0.00019589,3]
[351927032,1738846279395,-500.0,0.00019589,3]
[351927033,1738846279405,-500.0,0.00019589,3]
[351927034,1738846279415,-500.0,0.00019589,3]
[351927035,1738846279424,-500.0,0.00019589,3]
[351927036,1738846279434,-852.8,0.00019589,3]
[351927037,1738846279443,-500.0,0.00019589,3]
[351927038,1738846279455,-1627.16,0.00019589,3]
[351927039,1738846279465,-500.0,0.00019589,3]
[351927040,1738846279475,-1406.61,0.00019589,3]
[351927041,1738846279484,-500.0,0.00019589,3]
[351927042,1738846279494,-500.0,0.00019589,3]
[351927043,1738846279503,-2737.82,0.00019589,3]
[351927044,1738846279513,-204.01807778,0.00019589,3]
[351927045,1738846279522,-500.0,0.00019589,3]
[351927046,1738846279531,-500.0,0.00019589,3]
[351927047,1738846279540,-500.0,0.00019589,3]
[351927048,1738846279550,-1392.11,0.00019589,3]
[351927049,1738846279559,-500.0,0.00019589,3]
[351927050,1738846279574,-1960.89,0.00019589,3]
[351927051,1738846279585,-500.0,0.00019589,3]
[351927052,1738846279595,-1194.79,0.00019589,3]
[351927053,1738846279604,-500.0,0.00019589,3]
[351927054,1738846279615,-500.0,0.00019589,3]
[351927055,1738846279625,-500.0,0.00019589,3]
[351927056,1738846279634,-502.11250129,0.00019589,3]
[351927057,1738846279644,-500.0,0.00019589,3]
[351927058,1738846279656,-353.25678929,0.00019589,3]
[351927059,1738846279665,-612.76513341,0.00019589,3]
[351927060,1738846279675,-500.0,0.00019589,3]
[351927061,1738846279685,-1352.45,0.00019589,3]
[351927062,1738846279695,-500.0,0.00019589,3]
[351927063,1738846279704,-1842.88,0.00019589,3]
[351927064,1738846279713,-500.0,0.00019589,3]
[351927065,1738846279723,-500.0,0.00019589,3]
[351927066,1738846279732,-500.0,0.00019589,3]
[351927067,1738846279741,-500.0,0.00019589,3]
[351927068,1738846279751,-500.0,0.00019589,3]
[351927069,1738846279760,-500.0,0.00019589,3]
[351927070,1738846279770,-2170.82,0.00019589,3]
[351927071,1738846279780,-1035.43,0.00019589,3]
[351927072,1738846279791,-813.75,0.00019589,3]
[351927073,1738846279801,-500.0,0.00019589,3]
[351927074,1738846279812,-500.0,0.00019589,3]
[351927075,1738846279821,-500.0,0.00019589,3]
[351927076,1738846279833,-500.0,0.00019589,3]
[351927077,1738846279844,-500.0,0.00019589,3]
[351927078,1738846279854,-635.58,0.00019589,3]
[351927079,1738846279863,-502.83,0.00019589,3]
[351927080,1738846279873,-500.0,0.00019589,3]
[351927081,1738846279882,-1937.94,0.00019589,3]
[351927082,1738846279891,-965.78,0.00019589,3]
[351927083,1738846279901,-500.0,0.00019589,3]
[351927084,1738846279910,-503.36,0.00019589,3]
[351927085,1738846279919,-500.0,0.00019589,3]
[351927086,1738846279927,-500.0,0.00019589,3]
[351927087,1738846279937,-538.72,0.00019589,3]
[351927088,1738846279946,-500.0,0.00019589,3]
[351927089,1738846279956,-543.11789898,0.00019589,3]
[351927090,1738846279965,-1191.19,0.00019589,3]
[351927091,1738846279975,-646.97,0.00019589,3]
[351927092,1738846279985,-676.42,0.00019589,3]
[351927093,1738846279994,-500.0,0.00019589,3]
[351927094,1738846280003,-1469.68,0.00019589,3]
[351927095,1738846280013,-1167.19,0.00019589,3]
[351927096,1738846280022,-309.64455163,0.00019589,3]
[351927097,1738846280032,-605.91,0.00019589,3]
[351927098,1738846280042,-1814.25,0.00019589,3]
[351927099,1738846280050,-640.16433935,0.00019589,3]
[351927100,1738846280060,-500.0,0.00019589,3]
[351927101,1738846280068,-500.0,0.00019589,3]
[351927102,1738846280078,-500.0,0.00019589,3]
[351927103,1738846280088,-500.0,0.00019589,3]
[351927104,1738846280097,-500.0,0.00019589,3]
[351927105,1738846280106,-500.0,0.00019589,3]
[351927106,1738846280115,-500.0,0.00019589,3]
[351927107,1738846280124,-2990.99,0.00019589,3]
[351927108,1738846280134,-500.0,0.00019589,3]
[351927109,1738846280143,-804.35,0.00019589,3]
[351927110,1738846280153,-500.0,0.00019589,3]
[351927111,1738846280162,-1583.47,0.00019589,3]
[351927112,1738846280171,-500.0,0.00019589,3]
[351927113,1738846280181,-706.68,0.00019589,3]
[351927114,1738846280190,-500.0,0.00019589,3]
[351927115,1738846280200,-500.0,0.00019589,3]
[351927116,1738846280210,-1146.0,0.00019589,3]
[351927117,1738846280220,-500.0,0.00019589,3]
[351927118,1738846280229,-500.0,0.00019589,3]
[351927119,1738846280239,-500.0,0.00019589,3]
[351927120,1738846280248,-665.19,0.00019589,3]
[351927121,1738846280258,-500.0,0.00019589,3]
[351927122,1738846280267,-500.0,0.00019589,3]
[351927123,1738846280277,-1178.74,0.00019589,3]
[351927124,1738846280286,-500.0,0.00019589,3]
[351927125,1738846280296,-500.0,0.00019589,3]
[351927126,1738846280305,-1057.88,0.00019589,3]
[351927127,1738846280314,-500.0,0.00019589,3]
[351927128,1738846280324,-515.37,0.00019589,3]
[351927129,1738846280333,-500.0,0.00019589,3]
[351927130,1738846280343,-500.0,0.00019589,3]
[351927131,1738846280352,-500.0,0.00019589,3]
[351927132,1738846280362,-535.01565164,0.00019589,3]
[351927133,1738846280840,-463.47434836,0.00019589,3]
[351927134,1738846280850,-127.35747164,0.00019589,3]
[351927135,1738846281493,-500.0,0.00019178,2]
[351927136,1738846281502,-500.0,0.00019178,2]
[351927137,1738846281512,-500.0,0.00019178,2]
[351927138,1738846281521,-500.0,0.00019178,2]
[351927139,1738846281531,-427.71197663,0.00019315,3]
[351927140,1738846281541,-710.52252836,0.00019589,3]
[351927141,1738846281551,-1087.83,0.00019589,3]
[351927142,1738846281562,-500.0,0.00019589,3]
[351927143,1738846281574,-609.22,0.00019589,3]
[351927144,1738846281584,-500.0,0.00019589,3]
[351927145,1738846281594,-396.42619508,0.00019589,3]
[351927146,1738846281604,-498.80032317,0.00019589,3]
[351927147,1738846281615,-500.0,0.00019589,3]
[351927148,1738846281625,-500.0,0.00019589,3]
[351927149,1738846281634,-1149.76,0.00019589,3]
[351927150,1738846281644,-500.0,0.00019589,3]
[351927151,1738846281655,-500.0,0.00019589,3]
[351927152,1738846281664,-500.0,0.00019589,3]
[351927153,1738846281674,-500.0,0.00019589,3]
[351927154,1738846281683,-500.0,0.00019589,3]
[351927155,1738846281693,-500.0,0.00019589,3]
[351927156,1738846281703,-667.19,0.00019589,3]
[351927157,1738846281712,-500.0,0.00019589,3]
[351927158,1738846281722,-500.0,0.00019589,3]
[351927159,1738846281732,-848.56,0.00019589,3]
[351927160,1738846281742,-917.63,0.00019589,3]
[351927161,1738846281751,-500.0,0.00019589,3]
[351927162,1738846281762,-500.0,0.00019589,3]
[351927163,1738846281772,-500.0,0.00019589,3]
[351927164,1738846281783,-1882.91,0.00019589,3]
[351927165,1738846281793,-1478.32,0.00019589,3]
[351927166,1738846281803,-1603.73,0.00019589,3]
[351927167,1738846281812,-500.0,0.00019589,3]
[351927168,1738846281823,-1082.14,0.00019589,3]
[351927169,1738846281832,-580.3,0.00019589,3]
[351927170,1738846281842,-776.5,0.00019589,3]
[351927171,1738846281851,-1297.86,0.00019589,3]
[351927172,1738846281862,-500.0,0.00019589,3]
[351927173,1738846281871,-545.4949786,0.00019589,3]
[351927174,1738846281881,-500.0,0.00019589,3]
[351927175,1738846281891,-937.84,0.00019589,3]
[351927176,1738846281901,-1684.26,0.00019589,3]
[351927177,1738846281910,-1420.63,0.00019589,3]
[351927178,1738846281919,-500.0,0.00019589,2]
[351927179,1738846281929,-500.0,0.00019589,3]
[351927180,1738846281938,-500.0,0.00019589,3]
[351927181,1738846281948,-1096.75,0.00019589,3]
[351927182,1738846281957,-854.25,0.00019589,3]
[351927183,1738846281967,-502.61424411,0.00019589,3]
[351927184,1738846281976,-500.0,0.00019589,3]
[351927185,1738846281986,-500.0,0.00019589,3]
[351927186,1738846281995,-621.7,0.00019589,2]
[351927187,1738846282006,-500.0,0.00019589,3]
[351927188,1738846282016,-500.0,0.00019589,3]
[351927189,1738846282026,-500.0,0.00019589,3]
[351927190,1738846282036,-747.61,0.00019589,3]
[351927191,1738846282046,-151.0,0.00019599,2]
[351927192,1738846282055,-4260.2213588,0.00019599,2]
[351927193,1738846282065,-1900.0,0.000196,7]
[351927194,1738846282075,-1444.0,0.00019609,2]
[351927195,1738846282085,-1272.0,0.00019616,2]
[351927196,1738846282095,-310.11773278,0.00019652,2]
[351927197,1738846282104,-150.0,0.00019683,2]
[351927198,1738846282114,-721.22446033,0.00019699,5]
[351927199,1738846282127,-512.23702765,0.00019699,5]
[351927200,1738846282136,-9556.29999999,0.000197,2]
[351927201,1738846282145,-1900.0,0.000197,7]
[351927202,1738846282154,-320.56394293,0.00019721,2]
[351927203,1738846282164,-500.0,0.00019721,2]
[351927204,1738846282173,-500.0,0.00019724,3]
[351927205,1738846282182,-500.0,0.00019724,3]
[351927206,1738846282191,-1149.2,0.00019724,3]
[351927207,1738846282200,-1036.53,0.00019724,2]
[351927208,1738846282209,-1151.95,0.00019725,3]
[351927209,1738846282219,-500.0,0.00019725,3]
[351927210,1738846282228,-500.0,0.00019725,3]
[351927211,1738846282237,-953.93,0.00019725,3]
[351927212,1738846282247,-1626.26,0.00019725,3]
[351927213,1738846282257,-554.28,0.00019725,3]
[351927214,1738846282267,-1964.76,0.00019725,3]
[351927215,1738846282276,-1307.9,0.00019725,3]
[351927216,1738846282286,-1499.72,0.00019725,3]
[351927217,1738846282295,-503.56829193,0.00019725,3]
[351927218,1738846282642,-500.0,0.00019178,2]
[351927219,1738846282652,-29.19999995,0.00019178,2]
[351927220,1738846282735,-470.80000005,0.00019178,2]
[351927221,1738846282746,-151.0,0.00019178,2]
[351927222,1738846282757,-151.0,0.00019178,2]
[351927223,1738846282766,-500.0,0.00019178,2]
[351927224,1738846282776,-151.0,0.00019178,2]
[351927225,1738846282785,-431.60974288,0.00019315,3]
[351927226,1738846282794,-482.83236035,0.00019725,3]
[351927227,1738846985206,1000000.0,0.0002,120]
[351927250,1738847432244,-150.0,8.835e-05,2]
[351927251,1738847432255,-300.0,8.835e-05,2]
[351927252,1738847432265,-2715.50000002,8.836e-05,2]
[351927253,1738847432277,-1000.398,8.836e-05,2]
[351927254,1738847432302,-306.05575,8.836e-05,2]
[351927255,1738847432314,-342.38108334,8.836e-05,2]
[351927256,1738847432327,-398.27055315,8.836e-05,2]
[351927257,1738847432362,-262.80701349,8.836e-05,2]
[351927258,1738847432372,-500.0,8.836e-05,2]
[351927259,1738847432382,-500.0,8.836e-05,2]
[351927260,1738847432392,-302.69548926,8.836e-05,2]
[351927261,1738847432421,-12.25323526,8.836e-05,2]
[351927262,1738847432431,-1091.30389949,8.836e-05,2]
[351927263,1738847432442,-1197.584209,8.836e-05,2]